{"text_format":"1","workbook":"xlsx","n_sheets":5,"sheets":["Welcome","السجل_العام_للمستفيدين","تقارير و فرز","سجل انتظار","info"],"not_rendered":{"charts":0,"images":0,"macros":1,"external_links":0,"defined_names":2,"comments":0,"pivot_tables":5},"unopened":[],"bounds":{"document_bytes":16777216,"sheet_cells":100000,"rows_first":2000,"rows_last":500,"rows_between":2000,"halvings":0,"cell_chars":16384,"cell_head_chars":4096},"cells_cut":0,"cells_raw":0,"read":"whole","date_system":"1900"}

{"sheet":"Welcome","index":0,"n_rows":0,"n_cols":0,"rows_kept":0,"cut":false,"hidden":false,"merged":[]}

{"sheet":"السجل_العام_للمستفيدين","index":1,"n_rows":316,"n_cols":44,"rows_kept":316,"cut":false,"hidden":false,"merged":[]}
["ID","الاسم و الكنية","اسم الاب","تاريخ الميلاد","العمر","الهاتف","رقم الوثيقة","الجنس","الدراسة","المدينة","القرية","الحي","العنوان التفصيلي","الهوايات","يتيم","احتياجات خاصة","مشاكل صحية","مهارات الحياة","تقييم مهارات الحياة","رقم دورة مهارات الحياة","تاريخ البدء","تاريخ الانتهاء","مكان انعقاد الدورة","الرغبة الاولى","رقم الدورة 1","تاريخ البدء 1","تاريخ الانتهاء 1","النتيجة 1","التقييم 1","الرغبة الثانية","تاريخ البدء 2","تاريخ الانتهاء 2","النتيجة 2","التقييم 2","الرغبة الثالثة","تاريخ البدء 3","تاريخ الانتهاء 3","النتيجة 3","التقييم 3","المركز","الرياضة الداخلية","مرات الحضور رياضة داخلية","الملاحظات","شرط تحقق التكرار"]
[1,1,"محمد","1986-10-05",31,564654564,null,"ذكر",null,null,null,null,"بيسبسيب",null,null,null,null,null,null,null,null,null,"كوافير",null,null,null,null,null,"كوافير",null,null,null,null,null,null,null,null,null,null,null,null,null,null,{"$f":"SUMPRODUCT(--($B$2:B2&\"*\"&$C$2:C2=IF(AND(B2<>\"\",C2<>\"\"),B2&\"*\"&C2,\"\")))<=1","v":true}]
[2,2,"mohamed",null,118,null,null,null,null,null,null,null,null,null,null,null,null,null,null,null,null,null,null,null,null,null,null,null,null,null,null,null,null,null,null,null,null,null,null,null,null,null,null,{"$f":"SUMPRODUCT(--($B$2:B316&\"*\"&$C$2:C316=IF(AND(B3<>\"\",C3<>\"\"),B3&\"*\"&C3,\"\")))<=1","v":true}]
[3,3,null,null,118]
[4,4,null,null,118]
[5,5,null,null,118]
[6,6,null,null,118]
[7,7,null,null,118]
[8,8,null,null,118]
[9,9,null,null,118]
[10,10,null,null,118]
[11,11,null,null,118]
[12,12,null,null,118]
[13,13,null,null,118]
[14,14,null,null,118]
[15,15,null,null,118]
[16,16,null,null,118]
[17,17,null,null,118]
[18,18,null,null,118]
[19,19,null,null,118]
[20,20,null,null,118]
[21,21,null,null,118]
[22,22,null,null,118]
[23,23,null,null,118]
[24,24,null,null,118]
[25,25,null,null,118]
[26,26,null,null,118]
[27,27,null,null,118]
[28,28,null,null,118]
[29,29,null,null,118]
[30,30,null,null,118]
[31,31,null,null,118]
[32,32,null,null,118]
[33,33,null,null,118]
[34,34,null,null,118]
[35,35,null,null,118]
[36,36,null,null,118]
[37,37,null,null,118]
[38,38,null,null,118]
[39,39,null,null,118]
[40,40,null,null,118]
[41,41,null,null,118]
[42,42,null,null,118]
[43,43,null,null,118]
[44,44,null,null,118]
[45,45,null,null,118]
[46,46,null,null,118]
[47,47,null,null,118]
[48,48,null,null,118]
[49,49,null,null,118]
[50,50,null,null,118]
[51,51,null,null,118]
[52,52,null,null,118]
[53,53,null,null,118]
[54,54,null,null,118]
[55,55,null,null,118]
[56,56,null,null,118]
[57,57,null,null,118]
[58,58,null,null,118]
[59,59,null,null,118]
[60,60,null,null,118]
[61,61,null,null,118]
[62,62,null,null,118]
[63,63,null,null,118]
[64,64,null,null,118]
[65,65,null,null,118]
[66,66,null,null,118]
[67,67,null,null,118]
[68,68,null,null,118]
[69,69,null,null,118]
[70,70,null,null,118]
[71,71,null,null,118]
[72,72,null,null,118]
[73,73,null,null,118]
[74,74,null,null,118]
[75,75,null,null,118]
[76,76,null,null,118]
[77,77,null,null,118]
[78,78,null,null,118]
[79,79,null,null,118]
[80,80,null,null,118]
[81,81,null,null,118]
[82,82,null,null,118]
[83,83,null,null,118]
[84,84,null,null,118]
[85,85,null,null,118]
[86,86,null,null,118]
[87,87,null,null,118]
[88,88,null,null,118]
[89,89,null,null,118]
[90,90,null,null,118]
[91,91,null,null,118]
[92,92,null,null,118]
[93,93,null,null,118]
[94,94,null,null,118]
[95,95,null,null,118]
[96,96,null,null,118]
[97,97,null,null,118]
[98,98,null,null,118]
[99,99,null,null,118]
[100,100,null,null,118]
[101,101,null,null,118]
[102,102,null,null,118]
[103,103,null,null,118]
[104,104,null,null,118]
[105,105,null,null,118]
[106,106,null,null,118]
[107,107,null,null,118]
[108,108,null,null,118]
[109,109,null,null,118]
[110,110,null,null,118]
[111,111,null,null,118]
[112,112,null,null,118]
[113,113,null,null,118]
[114,114,null,null,118]
[115,115,null,null,118]
[116,116,null,null,118]
[117,117,null,null,118]
[118,118,null,null,118]
[119,119,null,null,118]
[120,120,null,null,118]
[121,121,null,null,118]
[122,122,null,null,118]
[123,123,null,null,118]
[124,124,null,null,118]
[125,125,null,null,118]
[126,126,null,null,118]
[127,127,null,null,118]
[128,128,null,null,118]
[129,129,null,null,118]
[130,130,null,null,118]
[131,131,null,null,118]
[132,132,null,null,118]
[133,133,null,null,118]
[134,134,null,null,118]
[135,135,null,null,118]
[136,136,null,null,118]
[137,137,null,null,118]
[138,138,null,null,118]
[139,139,null,null,118]
[140,140,null,null,118]
[141,141,null,null,118]
[142,142,null,null,118]
[143,143,null,null,118]
[144,144,null,null,118]
[145,145,null,null,118]
[146,146,null,null,118]
[147,147,null,null,118]
[148,148,null,null,118]
[149,149,null,null,118]
[150,150,null,null,118]
[151,151,null,null,118]
[152,152,null,null,118]
[153,153,null,null,118]
[154,154,null,null,118]
[155,155,null,null,118]
[156,156,null,null,118]
[157,157,null,null,118]
[158,158,null,null,118]
[159,159,null,null,118]
[160,160,null,null,118]
[161,161,null,null,118]
[162,162,null,null,118]
[163,163,null,null,118]
[164,164,null,null,118]
[165,165,null,null,118]
[166,166,null,null,118]
[167,167,null,null,118]
[168,168,null,null,118]
[169,169,null,null,118]
[170,170,null,null,118]
[171,171,null,null,118]
[172,172,null,null,118]
[173,173,null,null,118]
[174,174,null,null,118]
[175,175,null,null,118]
[176,176,null,null,118]
[177,177,null,null,118]
[178,178,null,null,118]
[179,179,null,null,118]
[180,180,null,null,118]
[181,181,null,null,118]
[182,182,null,null,118]
[183,183,null,null,118]
[184,184,null,null,118]
[185,185,null,null,118]
[186,186,null,null,118]
[187,187,null,null,118]
[188,188,null,null,118]
[189,189,null,null,118]
[190,190,null,null,118]
[191,191,null,null,118]
[192,192,null,null,118]
[193,193,null,null,118]
[194,194,null,null,118]
[195,195,null,null,118]
[196,196,null,null,118]
[197,197,null,null,118]
[198,198,null,null,118]
[199,199,null,null,118]
[200,200,null,null,118]
[201,201,null,null,118]
[202,202,null,null,118]
[203,203,null,null,118]
[204,204,null,null,118]
[205,205,null,null,118]
[206,206,null,null,118]
[207,207,null,null,118]
[208,208,null,null,118]
[209,209,null,null,118]
[210,210,null,null,118]
[211,211,null,null,118]
[212,212,null,null,118]
[213,213,null,null,118]
[214,214,null,null,118]
[215,215,null,null,118]
[216,216,null,null,118]
[217,217,null,null,118]
[218,218,null,null,118]
[219,219,null,null,118]
[220,220,null,null,118]
[221,221,null,null,118]
[222,222,null,null,118]
[223,223,null,null,118]
[224,224,null,null,118]
[225,225,null,null,118]
[226,226,null,null,118]
[227,227,null,null,118]
[228,228,null,null,118]
[229,229,null,null,118]
[230,230,null,null,118]
[231,231,null,null,118]
[232,232,null,null,118]
[233,233,null,null,118]
[234,234,null,null,118]
[235,235,null,null,118]
[236,236,null,null,118]
[237,237,null,null,118]
[238,238,null,null,118]
[239,239,null,null,118]
[240,240,null,null,118]
[241,241,null,null,118]
[242,242,null,null,118]
[243,243,null,null,118]
[244,244,null,null,118]
[245,245,null,null,118]
[246,246,null,null,118]
[247,247,null,null,118]
[248,248,null,null,118]
[249,249,null,null,118]
[250,250,null,null,118]
[251,251,null,null,118]
[252,252,null,null,118]
[253,253,null,null,118]
[254,254,null,null,118]
[255,255,null,null,118]
[256,256,null,null,118]
[257,257,null,null,118]
[258,258,null,null,118]
[259,259,null,null,118]
[260,260,null,null,118]
[261,261,null,null,118]
[262,262,null,null,118]
[263,263,null,null,118]
[264,264,null,null,118]
[265,265,null,null,118]
[266,266,null,null,118]
[267,267,null,null,118]
[268,268,null,null,118]
[269,269,null,null,118]
[270,270,null,null,118]
[271,271,null,null,118]
[272,272,null,null,118]
[273,273,null,null,118]
[274,274,null,null,118]
[275,275,null,null,118]
[276,276,null,null,118]
[277,277,null,null,118]
[278,278,null,null,118]
[279,279,null,null,118]
[280,280,null,null,118]
[281,281,null,null,118]
[282,282,null,null,118]
[283,283,null,null,118]
[284,284,null,null,118]
[285,285,null,null,118]
[286,286,null,null,118]
[287,287,null,null,118]
[288,288,null,null,118]
[289,289,null,null,118]
[290,290,null,null,118]
[291,291,null,null,118]
[292,292,null,null,118]
[293,293,null,null,118]
[294,294,null,null,118]
[295,295,null,null,118]
[296,296,null,null,118]
[297,297,null,null,118]
[298,298,null,null,118]
[299,299,null,null,118]
[300,300,null,null,118]
[301,301,null,null,118]
[302,302,null,null,118]
[303,303,null,null,118]
[304,304,null,null,118]
[305,305,null,null,118]
[306,306,null,null,118]
[307,307,null,null,118]
[308,308,null,null,118]
[309,309,null,null,118]
[310,310,null,null,118]
[311,311,null,null,118]
[312,312,null,null,118]
[313,313,null,null,118]
[314,314,null,null,118]
[315,315,null,null,118]

{"sheet":"تقارير و فرز","index":2,"n_rows":15,"n_cols":11,"rows_kept":15,"cut":false,"hidden":false,"merged":[[0,3,1,4],[0,6,1,7],[0,9,1,10]]}
["العمر","(All)",null,"الرغبة الاولى",null,null,"الرغبة الثانية",null,null,"الرغبة الثالثة"]
["الجنس","(All)"]
["يتيم","(All)",null,"مهارات الحياة","(Multiple Items)",null,"مهارات الحياة","(Multiple Items)",null,"مهارات الحياة","(Multiple Items)"]
["احتياجات خاصة","(All)",null,"الجنس","(All)",null,"الجنس","(All)",null,"الجنس","(All)"]
["مشاكل صحية","(All)",null,"العمر","(All)",null,"العمر","(All)",null,"العمر","(All)"]
["مهارات الحياة","(blank)",null,"تاريخ الانتهاء 1","(All)",null,"تاريخ الانتهاء 2","(All)",null,"تاريخ الانتهاء 3","(All)"]
["الرغبة الاولى","(blank)"]
["تاريخ الانتهاء 1","(All)",null,"Row Labels","Count of ID",null,"Row Labels","Count of ID",null,"Row Labels","Count of ID"]
["الرغبة الثانية","(All)",null,"Grand Total",null,null,"Grand Total",null,null,"Grand Total"]
["تاريخ الانتهاء 2","(All)"]
["الرغبة الثالثة","(All)"]
["تاريخ الانتهاء 3","(All)"]
[]
["Count of ID"]
[315]

{"sheet":"سجل انتظار","index":3,"n_rows":317,"n_cols":46,"rows_kept":317,"cut":false,"hidden":false,"merged":[[1,44,1,45]]}
[1,2,3,4,5,6,7,8,9,10,11,12,13,14,15,16,17,18,19,20,21,22,23,24,25,26,27,28,29,30,31,32,33,34,35,36,37,38,39,40,41,42,43,44]
["تكرار","الاسم و الكنية","اسم الاب","تاريخ الميلاد","العمر","الهاتف","رقم الوثيقة","الجنس","الدراسة","المدينة","القرية","الحي","العنوان التفصيلي","الهوايات","يتيم","احتياجات خاصة","مشاكل صحية","مهارات الحياة","تقييم مهارات الحياة","رقم دورة مهارات الحياة","تاريخ البدء","تاريخ الانتهاء","مكان انعقاد الدورة","الرغبة الاولى","رقم الدورة 1","تاريخ البدء 1","تاريخ الانتهاء 1","النتيجة 1","التقييم 1","الرغبة الثانية","تاريخ البدء 2","تاريخ الانتهاء 2","النتيجة 2","التقييم 2","الرغبة الثالثة","تاريخ البدء 3","تاريخ الانتهاء 3","النتيجة 3","التقييم 3","المركز","الرياضة الداخلية","مرات الحضور رياضة داخلية","الملاحظات","ينقل للسجل","الفرز"]
[{"$f":"COUNTIF(السجل_العام_للمستفيدين!B:B,'سجل انتظار'!B3)","v":0},"محمد زرقا","محمد","1986-10-05",{"$f":"DATEDIF(D3,TODAY(),\"y\")&\"  \"","v":"31  "},564654564,null,"ذكر",null,null,null,null,"بيسبسيب",null,null,null,null,null,null,null,null,null,null,"كوافير",null,null,null,null,null,"كوافير",null,null,null,null,"كوافير",null,null,null,null,null,null,null,"شسيشسي",1,"العمر","(All)"]
[{"$f":"COUNTIF(السجل_العام_للمستفيدين!B:B,'سجل انتظار'!B4)","v":0},"ahmed","mohamed",null,{"$f":"DATEDIF(D4,TODAY(),\"y\")&\"  \"","v":"118  "},null,null,null,null,null,null,null,null,null,null,null,null,null,null,null,null,null,null,null,null,null,null,null,null,null,null,null,null,null,null,null,null,null,null,null,null,null,null,null,"الجنس","(All)"]
[{"$f":"COUNTIF(السجل_العام_للمستفيدين!B:B,'سجل انتظار'!B5)","v":0},null,null,null,"118  ",null,null,null,null,null,null,null,null,null,null,null,null,null,null,null,null,null,null,null,null,null,null,null,null,null,null,null,null,null,null,null,null,null,null,null,null,null,null,null,"الرغبة الاولى","(All)"]
[{"$f":"COUNTIF(السجل_العام_للمستفيدين!B:B,'سجل انتظار'!B6)","v":0},null,null,null,"118  ",null,null,null,null,null,null,null,null,null,null,null,null,null,null,null,null,null,null,null,null,null,null,null,null,null,null,null,null,null,null,null,null,null,null,null,null,null,null,null,"الرغبة الثانية","(All)"]
[{"$f":"COUNTIF(السجل_العام_للمستفيدين!B:B,'سجل انتظار'!B7)","v":0},null,null,null,"118  ",null,null,null,null,null,null,null,null,null,null,null,null,null,null,null,null,null,null,null,null,null,null,null,null,null,null,null,null,null,null,null,null,null,null,null,null,null,null,null,"الرغبة الثالثة","(All)"]
[{"$f":"COUNTIF(السجل_العام_للمستفيدين!B:B,'سجل انتظار'!B8)","v":0},null,null,null,"118  ",null,null,null,null,null,null,null,null,null,null,null,null,null,null,null,null,null,null,null,null,null,null,null,null,null,null,null,null,null,null,null,null,null,null,null,null,null,null,null,"الملاحظات","(All)"]
[{"$f":"COUNTIF(السجل_العام_للمستفيدين!B:B,'سجل انتظار'!B9)","v":0},null,null,null,"118  "]
[{"$f":"COUNTIF(السجل_العام_للمستفيدين!B:B,'سجل انتظار'!B10)","v":0},null,null,null,"118  ",null,null,null,null,null,null,null,null,null,null,null,null,null,null,null,null,null,null,null,null,null,null,null,null,null,null,null,null,null,null,null,null,null,null,null,null,null,null,null,"Count of الاسم و الكنية"]
[{"$f":"COUNTIF(السجل_العام_للمستفيدين!B:B,'سجل انتظار'!B11)","v":0},null,null,null,"118  "]
[{"$f":"COUNTIF(السجل_العام_للمستفيدين!B:B,'سجل انتظار'!B12)","v":0},null,null,null,"118  "]
[{"$f":"COUNTIF(السجل_العام_للمستفيدين!B:B,'سجل انتظار'!B13)","v":0},null,null,null,"118  "]
[{"$f":"COUNTIF(السجل_العام_للمستفيدين!B:B,'سجل انتظار'!B14)","v":0},null,null,null,"118  "]
[{"$f":"COUNTIF(السجل_العام_للمستفيدين!B:B,'سجل انتظار'!B15)","v":0},null,null,null,"118  "]
[{"$f":"COUNTIF(السجل_العام_للمستفيدين!B:B,'سجل انتظار'!B16)","v":0},null,null,null,"118  "]
[{"$f":"COUNTIF(السجل_العام_للمستفيدين!B:B,'سجل انتظار'!B17)","v":0},null,null,null,"118  "]
[{"$f":"COUNTIF(السجل_العام_للمستفيدين!B:B,'سجل انتظار'!B18)","v":0},null,null,null,"118  "]
[{"$f":"COUNTIF(السجل_العام_للمستفيدين!B:B,'سجل انتظار'!B19)","v":0},null,null,null,"118  "]
[{"$f":"COUNTIF(السجل_العام_للمستفيدين!B:B,'سجل انتظار'!B20)","v":0},null,null,null,"118  "]
[{"$f":"COUNTIF(السجل_العام_للمستفيدين!B:B,'سجل انتظار'!B21)","v":0},null,null,null,"118  "]
[{"$f":"COUNTIF(السجل_العام_للمستفيدين!B:B,'سجل انتظار'!B22)","v":0},null,null,null,"118  "]
[{"$f":"COUNTIF(السجل_العام_للمستفيدين!B:B,'سجل انتظار'!B23)","v":0},null,null,null,"118  "]
[{"$f":"COUNTIF(السجل_العام_للمستفيدين!B:B,'سجل انتظار'!B24)","v":0},null,null,null,"118  "]
[{"$f":"COUNTIF(السجل_العام_للمستفيدين!B:B,'سجل انتظار'!B25)","v":0},null,null,null,"118  "]
[{"$f":"COUNTIF(السجل_العام_للمستفيدين!B:B,'سجل انتظار'!B26)","v":0},null,null,null,"118  "]
[{"$f":"COUNTIF(السجل_العام_للمستفيدين!B:B,'سجل انتظار'!B27)","v":0},null,null,null,"118  "]
[{"$f":"COUNTIF(السجل_العام_للمستفيدين!B:B,'سجل انتظار'!B28)","v":0},null,null,null,"118  "]
[{"$f":"COUNTIF(السجل_العام_للمستفيدين!B:B,'سجل انتظار'!B29)","v":0},null,null,null,"118  "]
[{"$f":"COUNTIF(السجل_العام_للمستفيدين!B:B,'سجل انتظار'!B30)","v":0},null,null,null,"118  "]
[{"$f":"COUNTIF(السجل_العام_للمستفيدين!B:B,'سجل انتظار'!B31)","v":0},null,null,null,"118  "]
[{"$f":"COUNTIF(السجل_العام_للمستفيدين!B:B,'سجل انتظار'!B32)","v":0},null,null,null,"118  "]
[{"$f":"COUNTIF(السجل_العام_للمستفيدين!B:B,'سجل انتظار'!B33)","v":0},null,null,null,"118  "]
[{"$f":"COUNTIF(السجل_العام_للمستفيدين!B:B,'سجل انتظار'!B34)","v":0},null,null,null,"118  "]
[{"$f":"COUNTIF(السجل_العام_للمستفيدين!B:B,'سجل انتظار'!B35)","v":0},null,null,null,"118  "]
[{"$f":"COUNTIF(السجل_العام_للمستفيدين!B:B,'سجل انتظار'!B36)","v":0},null,null,null,"118  "]
[{"$f":"COUNTIF(السجل_العام_للمستفيدين!B:B,'سجل انتظار'!B37)","v":0},null,null,null,"118  "]
[{"$f":"COUNTIF(السجل_العام_للمستفيدين!B:B,'سجل انتظار'!B38)","v":0},null,null,null,"118  "]
[{"$f":"COUNTIF(السجل_العام_للمستفيدين!B:B,'سجل انتظار'!B39)","v":0},null,null,null,"118  "]
[{"$f":"COUNTIF(السجل_العام_للمستفيدين!B:B,'سجل انتظار'!B40)","v":0},null,null,null,"118  "]
[{"$f":"COUNTIF(السجل_العام_للمستفيدين!B:B,'سجل انتظار'!B41)","v":0},null,null,null,"118  "]
[{"$f":"COUNTIF(السجل_العام_للمستفيدين!B:B,'سجل انتظار'!B42)","v":0},null,null,null,"118  "]
[{"$f":"COUNTIF(السجل_العام_للمستفيدين!B:B,'سجل انتظار'!B43)","v":0},null,null,null,"118  "]
[{"$f":"COUNTIF(السجل_العام_للمستفيدين!B:B,'سجل انتظار'!B44)","v":0},null,null,null,"118  "]
[{"$f":"COUNTIF(السجل_العام_للمستفيدين!B:B,'سجل انتظار'!B45)","v":0},null,null,null,"118  "]
[{"$f":"COUNTIF(السجل_العام_للمستفيدين!B:B,'سجل انتظار'!B46)","v":0},null,null,null,"118  "]
[{"$f":"COUNTIF(السجل_العام_للمستفيدين!B:B,'سجل انتظار'!B47)","v":0},null,null,null,"118  "]
[{"$f":"COUNTIF(السجل_العام_للمستفيدين!B:B,'سجل انتظار'!B48)","v":0},null,null,null,"118  "]
[{"$f":"COUNTIF(السجل_العام_للمستفيدين!B:B,'سجل انتظار'!B49)","v":0},null,null,null,"118  "]
[{"$f":"COUNTIF(السجل_العام_للمستفيدين!B:B,'سجل انتظار'!B50)","v":0},null,null,null,"118  "]
[{"$f":"COUNTIF(السجل_العام_للمستفيدين!B:B,'سجل انتظار'!B51)","v":0},null,null,null,"118  "]
[{"$f":"COUNTIF(السجل_العام_للمستفيدين!B:B,'سجل انتظار'!B52)","v":0},null,null,null,"118  "]
[{"$f":"COUNTIF(السجل_العام_للمستفيدين!B:B,'سجل انتظار'!B53)","v":0},null,null,null,"118  "]
[{"$f":"COUNTIF(السجل_العام_للمستفيدين!B:B,'سجل انتظار'!B54)","v":0},null,null,null,"118  "]
[{"$f":"COUNTIF(السجل_العام_للمستفيدين!B:B,'سجل انتظار'!B55)","v":0},null,null,null,"118  "]
[{"$f":"COUNTIF(السجل_العام_للمستفيدين!B:B,'سجل انتظار'!B56)","v":0},null,null,null,"118  "]
[{"$f":"COUNTIF(السجل_العام_للمستفيدين!B:B,'سجل انتظار'!B57)","v":0},null,null,null,"118  "]
[{"$f":"COUNTIF(السجل_العام_للمستفيدين!B:B,'سجل انتظار'!B58)","v":0},null,null,null,"118  "]
[{"$f":"COUNTIF(السجل_العام_للمستفيدين!B:B,'سجل انتظار'!B59)","v":0},null,null,null,"118  "]
[{"$f":"COUNTIF(السجل_العام_للمستفيدين!B:B,'سجل انتظار'!B60)","v":0},null,null,null,"118  "]
[{"$f":"COUNTIF(السجل_العام_للمستفيدين!B:B,'سجل انتظار'!B61)","v":0},null,null,null,"118  "]
[{"$f":"COUNTIF(السجل_العام_للمستفيدين!B:B,'سجل انتظار'!B62)","v":0},null,null,null,"118  "]
[{"$f":"COUNTIF(السجل_العام_للمستفيدين!B:B,'سجل انتظار'!B63)","v":0},null,null,null,"118  "]
[{"$f":"COUNTIF(السجل_العام_للمستفيدين!B:B,'سجل انتظار'!B64)","v":0},null,null,null,"118  "]
[{"$f":"COUNTIF(السجل_العام_للمستفيدين!B:B,'سجل انتظار'!B65)","v":0},null,null,null,"118  "]
[{"$f":"COUNTIF(السجل_العام_للمستفيدين!B:B,'سجل انتظار'!B66)","v":0},null,null,null,"118  "]
[{"$f":"COUNTIF(السجل_العام_للمستفيدين!B:B,'سجل انتظار'!B67)","v":0},null,null,null,"118  "]
[{"$f":"COUNTIF(السجل_العام_للمستفيدين!B:B,'سجل انتظار'!B68)","v":0},null,null,null,{"$f":"DATEDIF(D68,TODAY(),\"y\")&\"  \"","v":"118  "}]
[{"$f":"COUNTIF(السجل_العام_للمستفيدين!B:B,'سجل انتظار'!B69)","v":0},null,null,null,"118  "]
[{"$f":"COUNTIF(السجل_العام_للمستفيدين!B:B,'سجل انتظار'!B70)","v":0},null,null,null,"118  "]
[{"$f":"COUNTIF(السجل_العام_للمستفيدين!B:B,'سجل انتظار'!B71)","v":0},null,null,null,"118  "]
[{"$f":"COUNTIF(السجل_العام_للمستفيدين!B:B,'سجل انتظار'!B72)","v":0},null,null,null,"118  "]
[{"$f":"COUNTIF(السجل_العام_للمستفيدين!B:B,'سجل انتظار'!B73)","v":0},null,null,null,"118  "]
[{"$f":"COUNTIF(السجل_العام_للمستفيدين!B:B,'سجل انتظار'!B74)","v":0},null,null,null,"118  "]
[{"$f":"COUNTIF(السجل_العام_للمستفيدين!B:B,'سجل انتظار'!B75)","v":0},null,null,null,"118  "]
[{"$f":"COUNTIF(السجل_العام_للمستفيدين!B:B,'سجل انتظار'!B76)","v":0},null,null,null,"118  "]
[{"$f":"COUNTIF(السجل_العام_للمستفيدين!B:B,'سجل انتظار'!B77)","v":0},null,null,null,"118  "]
[{"$f":"COUNTIF(السجل_العام_للمستفيدين!B:B,'سجل انتظار'!B78)","v":0},null,null,null,"118  "]
[{"$f":"COUNTIF(السجل_العام_للمستفيدين!B:B,'سجل انتظار'!B79)","v":0},null,null,null,"118  "]
[{"$f":"COUNTIF(السجل_العام_للمستفيدين!B:B,'سجل انتظار'!B80)","v":0},null,null,null,"118  "]
[{"$f":"COUNTIF(السجل_العام_للمستفيدين!B:B,'سجل انتظار'!B81)","v":0},null,null,null,"118  "]
[{"$f":"COUNTIF(السجل_العام_للمستفيدين!B:B,'سجل انتظار'!B82)","v":0},null,null,null,"118  "]
[{"$f":"COUNTIF(السجل_العام_للمستفيدين!B:B,'سجل انتظار'!B83)","v":0},null,null,null,"118  "]
[{"$f":"COUNTIF(السجل_العام_للمستفيدين!B:B,'سجل انتظار'!B84)","v":0},null,null,null,"118  "]
[{"$f":"COUNTIF(السجل_العام_للمستفيدين!B:B,'سجل انتظار'!B85)","v":0},null,null,null,"118  "]
[{"$f":"COUNTIF(السجل_العام_للمستفيدين!B:B,'سجل انتظار'!B86)","v":0},null,null,null,"118  "]
[{"$f":"COUNTIF(السجل_العام_للمستفيدين!B:B,'سجل انتظار'!B87)","v":0},null,null,null,"118  "]
[{"$f":"COUNTIF(السجل_العام_للمستفيدين!B:B,'سجل انتظار'!B88)","v":0},null,null,null,"118  "]
[{"$f":"COUNTIF(السجل_العام_للمستفيدين!B:B,'سجل انتظار'!B89)","v":0},null,null,null,"118  "]
[{"$f":"COUNTIF(السجل_العام_للمستفيدين!B:B,'سجل انتظار'!B90)","v":0},null,null,null,"118  "]
[{"$f":"COUNTIF(السجل_العام_للمستفيدين!B:B,'سجل انتظار'!B91)","v":0},null,null,null,"118  "]
[{"$f":"COUNTIF(السجل_العام_للمستفيدين!B:B,'سجل انتظار'!B92)","v":0},null,null,null,"118  "]
[{"$f":"COUNTIF(السجل_العام_للمستفيدين!B:B,'سجل انتظار'!B93)","v":0},null,null,null,"118  "]
[{"$f":"COUNTIF(السجل_العام_للمستفيدين!B:B,'سجل انتظار'!B94)","v":0},null,null,null,"118  "]
[{"$f":"COUNTIF(السجل_العام_للمستفيدين!B:B,'سجل انتظار'!B95)","v":0},null,null,null,"118  "]
[{"$f":"COUNTIF(السجل_العام_للمستفيدين!B:B,'سجل انتظار'!B96)","v":0},null,null,null,"118  "]
[{"$f":"COUNTIF(السجل_العام_للمستفيدين!B:B,'سجل انتظار'!B97)","v":0},null,null,null,"118  "]
[{"$f":"COUNTIF(السجل_العام_للمستفيدين!B:B,'سجل انتظار'!B98)","v":0},null,null,null,"118  "]
[{"$f":"COUNTIF(السجل_العام_للمستفيدين!B:B,'سجل انتظار'!B99)","v":0},null,null,null,"118  "]
[{"$f":"COUNTIF(السجل_العام_للمستفيدين!B:B,'سجل انتظار'!B100)","v":0},null,null,null,"118  "]
[{"$f":"COUNTIF(السجل_العام_للمستفيدين!B:B,'سجل انتظار'!B101)","v":0},null,null,null,"118  "]
[{"$f":"COUNTIF(السجل_العام_للمستفيدين!B:B,'سجل انتظار'!B102)","v":0},null,null,null,"118  "]
[{"$f":"COUNTIF(السجل_العام_للمستفيدين!B:B,'سجل انتظار'!B103)","v":0},null,null,null,"118  "]
[{"$f":"COUNTIF(السجل_العام_للمستفيدين!B:B,'سجل انتظار'!B104)","v":0},null,null,null,"118  "]
[{"$f":"COUNTIF(السجل_العام_للمستفيدين!B:B,'سجل انتظار'!B105)","v":0},null,null,null,"118  "]
[{"$f":"COUNTIF(السجل_العام_للمستفيدين!B:B,'سجل انتظار'!B106)","v":0},null,null,null,"118  "]
[{"$f":"COUNTIF(السجل_العام_للمستفيدين!B:B,'سجل انتظار'!B107)","v":0},null,null,null,"118  "]
[{"$f":"COUNTIF(السجل_العام_للمستفيدين!B:B,'سجل انتظار'!B108)","v":0},null,null,null,"118  "]
[{"$f":"COUNTIF(السجل_العام_للمستفيدين!B:B,'سجل انتظار'!B109)","v":0},null,null,null,"118  "]
[{"$f":"COUNTIF(السجل_العام_للمستفيدين!B:B,'سجل انتظار'!B110)","v":0},null,null,null,"118  "]
[{"$f":"COUNTIF(السجل_العام_للمستفيدين!B:B,'سجل انتظار'!B111)","v":0},null,null,null,"118  "]
[{"$f":"COUNTIF(السجل_العام_للمستفيدين!B:B,'سجل انتظار'!B112)","v":0},null,null,null,"118  "]
[{"$f":"COUNTIF(السجل_العام_للمستفيدين!B:B,'سجل انتظار'!B113)","v":0},null,null,null,"118  "]
[{"$f":"COUNTIF(السجل_العام_للمستفيدين!B:B,'سجل انتظار'!B114)","v":0},null,null,null,"118  "]
[{"$f":"COUNTIF(السجل_العام_للمستفيدين!B:B,'سجل انتظار'!B115)","v":0},null,null,null,"118  "]
[{"$f":"COUNTIF(السجل_العام_للمستفيدين!B:B,'سجل انتظار'!B116)","v":0},null,null,null,"118  "]
[{"$f":"COUNTIF(السجل_العام_للمستفيدين!B:B,'سجل انتظار'!B117)","v":0},null,null,null,"118  "]
[{"$f":"COUNTIF(السجل_العام_للمستفيدين!B:B,'سجل انتظار'!B118)","v":0},null,null,null,"118  "]
[{"$f":"COUNTIF(السجل_العام_للمستفيدين!B:B,'سجل انتظار'!B119)","v":0},null,null,null,"118  "]
[{"$f":"COUNTIF(السجل_العام_للمستفيدين!B:B,'سجل انتظار'!B120)","v":0},null,null,null,"118  "]
[{"$f":"COUNTIF(السجل_العام_للمستفيدين!B:B,'سجل انتظار'!B121)","v":0},null,null,null,"118  "]
[{"$f":"COUNTIF(السجل_العام_للمستفيدين!B:B,'سجل انتظار'!B122)","v":0},null,null,null,"118  "]
[{"$f":"COUNTIF(السجل_العام_للمستفيدين!B:B,'سجل انتظار'!B123)","v":0},null,null,null,"118  "]
[{"$f":"COUNTIF(السجل_العام_للمستفيدين!B:B,'سجل انتظار'!B124)","v":0},null,null,null,"118  "]
[{"$f":"COUNTIF(السجل_العام_للمستفيدين!B:B,'سجل انتظار'!B125)","v":0},null,null,null,"118  "]
[{"$f":"COUNTIF(السجل_العام_للمستفيدين!B:B,'سجل انتظار'!B126)","v":0},null,null,null,"118  "]
[{"$f":"COUNTIF(السجل_العام_للمستفيدين!B:B,'سجل انتظار'!B127)","v":0},null,null,null,"118  "]
[{"$f":"COUNTIF(السجل_العام_للمستفيدين!B:B,'سجل انتظار'!B128)","v":0},null,null,null,"118  "]
[{"$f":"COUNTIF(السجل_العام_للمستفيدين!B:B,'سجل انتظار'!B129)","v":0},null,null,null,"118  "]
[{"$f":"COUNTIF(السجل_العام_للمستفيدين!B:B,'سجل انتظار'!B130)","v":0},null,null,null,"118  "]
[{"$f":"COUNTIF(السجل_العام_للمستفيدين!B:B,'سجل انتظار'!B131)","v":0},null,null,null,"118  "]
[{"$f":"COUNTIF(السجل_العام_للمستفيدين!B:B,'سجل انتظار'!B132)","v":0},null,null,null,{"$f":"DATEDIF(D132,TODAY(),\"y\")&\"  \"","v":"118  "}]
[{"$f":"COUNTIF(السجل_العام_للمستفيدين!B:B,'سجل انتظار'!B133)","v":0},null,null,null,"118  "]
[{"$f":"COUNTIF(السجل_العام_للمستفيدين!B:B,'سجل انتظار'!B134)","v":0},null,null,null,"118  "]
[{"$f":"COUNTIF(السجل_العام_للمستفيدين!B:B,'سجل انتظار'!B135)","v":0},null,null,null,"118  "]
[{"$f":"COUNTIF(السجل_العام_للمستفيدين!B:B,'سجل انتظار'!B136)","v":0},null,null,null,"118  "]
[{"$f":"COUNTIF(السجل_العام_للمستفيدين!B:B,'سجل انتظار'!B137)","v":0},null,null,null,"118  "]
[{"$f":"COUNTIF(السجل_العام_للمستفيدين!B:B,'سجل انتظار'!B138)","v":0},null,null,null,"118  "]
[{"$f":"COUNTIF(السجل_العام_للمستفيدين!B:B,'سجل انتظار'!B139)","v":0},null,null,null,"118  "]
[{"$f":"COUNTIF(السجل_العام_للمستفيدين!B:B,'سجل انتظار'!B140)","v":0},null,null,null,"118  "]
[{"$f":"COUNTIF(السجل_العام_للمستفيدين!B:B,'سجل انتظار'!B141)","v":0},null,null,null,"118  "]
[{"$f":"COUNTIF(السجل_العام_للمستفيدين!B:B,'سجل انتظار'!B142)","v":0},null,null,null,"118  "]
[{"$f":"COUNTIF(السجل_العام_للمستفيدين!B:B,'سجل انتظار'!B143)","v":0},null,null,null,"118  "]
[{"$f":"COUNTIF(السجل_العام_للمستفيدين!B:B,'سجل انتظار'!B144)","v":0},null,null,null,"118  "]
[{"$f":"COUNTIF(السجل_العام_للمستفيدين!B:B,'سجل انتظار'!B145)","v":0},null,null,null,"118  "]
[{"$f":"COUNTIF(السجل_العام_للمستفيدين!B:B,'سجل انتظار'!B146)","v":0},null,null,null,"118  "]
[{"$f":"COUNTIF(السجل_العام_للمستفيدين!B:B,'سجل انتظار'!B147)","v":0},null,null,null,"118  "]
[{"$f":"COUNTIF(السجل_العام_للمستفيدين!B:B,'سجل انتظار'!B148)","v":0},null,null,null,"118  "]
[{"$f":"COUNTIF(السجل_العام_للمستفيدين!B:B,'سجل انتظار'!B149)","v":0},null,null,null,"118  "]
[{"$f":"COUNTIF(السجل_العام_للمستفيدين!B:B,'سجل انتظار'!B150)","v":0},null,null,null,"118  "]
[{"$f":"COUNTIF(السجل_العام_للمستفيدين!B:B,'سجل انتظار'!B151)","v":0},null,null,null,"118  "]
[{"$f":"COUNTIF(السجل_العام_للمستفيدين!B:B,'سجل انتظار'!B152)","v":0},null,null,null,"118  "]
[{"$f":"COUNTIF(السجل_العام_للمستفيدين!B:B,'سجل انتظار'!B153)","v":0},null,null,null,"118  "]
[{"$f":"COUNTIF(السجل_العام_للمستفيدين!B:B,'سجل انتظار'!B154)","v":0},null,null,null,"118  "]
[{"$f":"COUNTIF(السجل_العام_للمستفيدين!B:B,'سجل انتظار'!B155)","v":0},null,null,null,"118  "]
[{"$f":"COUNTIF(السجل_العام_للمستفيدين!B:B,'سجل انتظار'!B156)","v":0},null,null,null,"118  "]
[{"$f":"COUNTIF(السجل_العام_للمستفيدين!B:B,'سجل انتظار'!B157)","v":0},null,null,null,"118  "]
[{"$f":"COUNTIF(السجل_العام_للمستفيدين!B:B,'سجل انتظار'!B158)","v":0},null,null,null,"118  "]
[{"$f":"COUNTIF(السجل_العام_للمستفيدين!B:B,'سجل انتظار'!B159)","v":0},null,null,null,"118  "]
[{"$f":"COUNTIF(السجل_العام_للمستفيدين!B:B,'سجل انتظار'!B160)","v":0},null,null,null,"118  "]
[{"$f":"COUNTIF(السجل_العام_للمستفيدين!B:B,'سجل انتظار'!B161)","v":0},null,null,null,"118  "]
[{"$f":"COUNTIF(السجل_العام_للمستفيدين!B:B,'سجل انتظار'!B162)","v":0},null,null,null,"118  "]
[{"$f":"COUNTIF(السجل_العام_للمستفيدين!B:B,'سجل انتظار'!B163)","v":0},null,null,null,"118  "]
[{"$f":"COUNTIF(السجل_العام_للمستفيدين!B:B,'سجل انتظار'!B164)","v":0},null,null,null,"118  "]
[{"$f":"COUNTIF(السجل_العام_للمستفيدين!B:B,'سجل انتظار'!B165)","v":0},null,null,null,"118  "]
[{"$f":"COUNTIF(السجل_العام_للمستفيدين!B:B,'سجل انتظار'!B166)","v":0},null,null,null,"118  "]
[{"$f":"COUNTIF(السجل_العام_للمستفيدين!B:B,'سجل انتظار'!B167)","v":0},null,null,null,"118  "]
[{"$f":"COUNTIF(السجل_العام_للمستفيدين!B:B,'سجل انتظار'!B168)","v":0},null,null,null,"118  "]
[{"$f":"COUNTIF(السجل_العام_للمستفيدين!B:B,'سجل انتظار'!B169)","v":0},null,null,null,"118  "]
[{"$f":"COUNTIF(السجل_العام_للمستفيدين!B:B,'سجل انتظار'!B170)","v":0},null,null,null,"118  "]
[{"$f":"COUNTIF(السجل_العام_للمستفيدين!B:B,'سجل انتظار'!B171)","v":0},null,null,null,"118  "]
[{"$f":"COUNTIF(السجل_العام_للمستفيدين!B:B,'سجل انتظار'!B172)","v":0},null,null,null,"118  "]
[{"$f":"COUNTIF(السجل_العام_للمستفيدين!B:B,'سجل انتظار'!B173)","v":0},null,null,null,"118  "]
[{"$f":"COUNTIF(السجل_العام_للمستفيدين!B:B,'سجل انتظار'!B174)","v":0},null,null,null,"118  "]
[{"$f":"COUNTIF(السجل_العام_للمستفيدين!B:B,'سجل انتظار'!B175)","v":0},null,null,null,"118  "]
[{"$f":"COUNTIF(السجل_العام_للمستفيدين!B:B,'سجل انتظار'!B176)","v":0},null,null,null,"118  "]
[{"$f":"COUNTIF(السجل_العام_للمستفيدين!B:B,'سجل انتظار'!B177)","v":0},null,null,null,"118  "]
[{"$f":"COUNTIF(السجل_العام_للمستفيدين!B:B,'سجل انتظار'!B178)","v":0},null,null,null,"118  "]
[{"$f":"COUNTIF(السجل_العام_للمستفيدين!B:B,'سجل انتظار'!B179)","v":0},null,null,null,"118  "]
[{"$f":"COUNTIF(السجل_العام_للمستفيدين!B:B,'سجل انتظار'!B180)","v":0},null,null,null,"118  "]
[{"$f":"COUNTIF(السجل_العام_للمستفيدين!B:B,'سجل انتظار'!B181)","v":0},null,null,null,"118  "]
[{"$f":"COUNTIF(السجل_العام_للمستفيدين!B:B,'سجل انتظار'!B182)","v":0},null,null,null,"118  "]
[{"$f":"COUNTIF(السجل_العام_للمستفيدين!B:B,'سجل انتظار'!B183)","v":0},null,null,null,"118  "]
[{"$f":"COUNTIF(السجل_العام_للمستفيدين!B:B,'سجل انتظار'!B184)","v":0},null,null,null,"118  "]
[{"$f":"COUNTIF(السجل_العام_للمستفيدين!B:B,'سجل انتظار'!B185)","v":0},null,null,null,"118  "]
[{"$f":"COUNTIF(السجل_العام_للمستفيدين!B:B,'سجل انتظار'!B186)","v":0},null,null,null,"118  "]
[{"$f":"COUNTIF(السجل_العام_للمستفيدين!B:B,'سجل انتظار'!B187)","v":0},null,null,null,"118  "]
[{"$f":"COUNTIF(السجل_العام_للمستفيدين!B:B,'سجل انتظار'!B188)","v":0},null,null,null,"118  "]
[{"$f":"COUNTIF(السجل_العام_للمستفيدين!B:B,'سجل انتظار'!B189)","v":0},null,null,null,"118  "]
[{"$f":"COUNTIF(السجل_العام_للمستفيدين!B:B,'سجل انتظار'!B190)","v":0},null,null,null,"118  "]
[{"$f":"COUNTIF(السجل_العام_للمستفيدين!B:B,'سجل انتظار'!B191)","v":0},null,null,null,"118  "]
[{"$f":"COUNTIF(السجل_العام_للمستفيدين!B:B,'سجل انتظار'!B192)","v":0},null,null,null,"118  "]
[{"$f":"COUNTIF(السجل_العام_للمستفيدين!B:B,'سجل انتظار'!B193)","v":0},null,null,null,"118  "]
[{"$f":"COUNTIF(السجل_العام_للمستفيدين!B:B,'سجل انتظار'!B194)","v":0},null,null,null,"118  "]
[{"$f":"COUNTIF(السجل_العام_للمستفيدين!B:B,'سجل انتظار'!B195)","v":0},null,null,null,"118  "]
[{"$f":"COUNTIF(السجل_العام_للمستفيدين!B:B,'سجل انتظار'!B196)","v":0},null,null,null,{"$f":"DATEDIF(D196,TODAY(),\"y\")&\"  \"","v":"118  "}]
[{"$f":"COUNTIF(السجل_العام_للمستفيدين!B:B,'سجل انتظار'!B197)","v":0},null,null,null,"118  "]
[{"$f":"COUNTIF(السجل_العام_للمستفيدين!B:B,'سجل انتظار'!B198)","v":0},null,null,null,"118  "]
[{"$f":"COUNTIF(السجل_العام_للمستفيدين!B:B,'سجل انتظار'!B199)","v":0},null,null,null,"118  "]
[{"$f":"COUNTIF(السجل_العام_للمستفيدين!B:B,'سجل انتظار'!B200)","v":0},null,null,null,"118  "]
[{"$f":"COUNTIF(السجل_العام_للمستفيدين!B:B,'سجل انتظار'!B201)","v":0},null,null,null,"118  "]
[{"$f":"COUNTIF(السجل_العام_للمستفيدين!B:B,'سجل انتظار'!B202)","v":0},null,null,null,"118  "]
[{"$f":"COUNTIF(السجل_العام_للمستفيدين!B:B,'سجل انتظار'!B203)","v":0},null,null,null,"118  "]
[{"$f":"COUNTIF(السجل_العام_للمستفيدين!B:B,'سجل انتظار'!B204)","v":0},null,null,null,"118  "]
[{"$f":"COUNTIF(السجل_العام_للمستفيدين!B:B,'سجل انتظار'!B205)","v":0},null,null,null,"118  "]
[{"$f":"COUNTIF(السجل_العام_للمستفيدين!B:B,'سجل انتظار'!B206)","v":0},null,null,null,"118  "]
[{"$f":"COUNTIF(السجل_العام_للمستفيدين!B:B,'سجل انتظار'!B207)","v":0},null,null,null,"118  "]
[{"$f":"COUNTIF(السجل_العام_للمستفيدين!B:B,'سجل انتظار'!B208)","v":0},null,null,null,"118  "]
[{"$f":"COUNTIF(السجل_العام_للمستفيدين!B:B,'سجل انتظار'!B209)","v":0},null,null,null,"118  "]
[{"$f":"COUNTIF(السجل_العام_للمستفيدين!B:B,'سجل انتظار'!B210)","v":0},null,null,null,"118  "]
[{"$f":"COUNTIF(السجل_العام_للمستفيدين!B:B,'سجل انتظار'!B211)","v":0},null,null,null,"118  "]
[{"$f":"COUNTIF(السجل_العام_للمستفيدين!B:B,'سجل انتظار'!B212)","v":0},null,null,null,"118  "]
[{"$f":"COUNTIF(السجل_العام_للمستفيدين!B:B,'سجل انتظار'!B213)","v":0},null,null,null,"118  "]
[{"$f":"COUNTIF(السجل_العام_للمستفيدين!B:B,'سجل انتظار'!B214)","v":0},null,null,null,"118  "]
[{"$f":"COUNTIF(السجل_العام_للمستفيدين!B:B,'سجل انتظار'!B215)","v":0},null,null,null,"118  "]
[{"$f":"COUNTIF(السجل_العام_للمستفيدين!B:B,'سجل انتظار'!B216)","v":0},null,null,null,"118  "]
[{"$f":"COUNTIF(السجل_العام_للمستفيدين!B:B,'سجل انتظار'!B217)","v":0},null,null,null,"118  "]
[{"$f":"COUNTIF(السجل_العام_للمستفيدين!B:B,'سجل انتظار'!B218)","v":0},null,null,null,"118  "]
[{"$f":"COUNTIF(السجل_العام_للمستفيدين!B:B,'سجل انتظار'!B219)","v":0},null,null,null,"118  "]
[{"$f":"COUNTIF(السجل_العام_للمستفيدين!B:B,'سجل انتظار'!B220)","v":0},null,null,null,"118  "]
[{"$f":"COUNTIF(السجل_العام_للمستفيدين!B:B,'سجل انتظار'!B221)","v":0},null,null,null,"118  "]
[{"$f":"COUNTIF(السجل_العام_للمستفيدين!B:B,'سجل انتظار'!B222)","v":0},null,null,null,"118  "]
[{"$f":"COUNTIF(السجل_العام_للمستفيدين!B:B,'سجل انتظار'!B223)","v":0},null,null,null,"118  "]
[{"$f":"COUNTIF(السجل_العام_للمستفيدين!B:B,'سجل انتظار'!B224)","v":0},null,null,null,"118  "]
[{"$f":"COUNTIF(السجل_العام_للمستفيدين!B:B,'سجل انتظار'!B225)","v":0},null,null,null,"118  "]
[{"$f":"COUNTIF(السجل_العام_للمستفيدين!B:B,'سجل انتظار'!B226)","v":0},null,null,null,"118  "]
[{"$f":"COUNTIF(السجل_العام_للمستفيدين!B:B,'سجل انتظار'!B227)","v":0},null,null,null,"118  "]
[{"$f":"COUNTIF(السجل_العام_للمستفيدين!B:B,'سجل انتظار'!B228)","v":0},null,null,null,"118  "]
[{"$f":"COUNTIF(السجل_العام_للمستفيدين!B:B,'سجل انتظار'!B229)","v":0},null,null,null,"118  "]
[{"$f":"COUNTIF(السجل_العام_للمستفيدين!B:B,'سجل انتظار'!B230)","v":0},null,null,null,"118  "]
[{"$f":"COUNTIF(السجل_العام_للمستفيدين!B:B,'سجل انتظار'!B231)","v":0},null,null,null,"118  "]
[{"$f":"COUNTIF(السجل_العام_للمستفيدين!B:B,'سجل انتظار'!B232)","v":0},null,null,null,"118  "]
[{"$f":"COUNTIF(السجل_العام_للمستفيدين!B:B,'سجل انتظار'!B233)","v":0},null,null,null,"118  "]
[{"$f":"COUNTIF(السجل_العام_للمستفيدين!B:B,'سجل انتظار'!B234)","v":0},null,null,null,"118  "]
[{"$f":"COUNTIF(السجل_العام_للمستفيدين!B:B,'سجل انتظار'!B235)","v":0},null,null,null,"118  "]
[{"$f":"COUNTIF(السجل_العام_للمستفيدين!B:B,'سجل انتظار'!B236)","v":0},null,null,null,"118  "]
[{"$f":"COUNTIF(السجل_العام_للمستفيدين!B:B,'سجل انتظار'!B237)","v":0},null,null,null,"118  "]
[{"$f":"COUNTIF(السجل_العام_للمستفيدين!B:B,'سجل انتظار'!B238)","v":0},null,null,null,"118  "]
[{"$f":"COUNTIF(السجل_العام_للمستفيدين!B:B,'سجل انتظار'!B239)","v":0},null,null,null,"118  "]
[{"$f":"COUNTIF(السجل_العام_للمستفيدين!B:B,'سجل انتظار'!B240)","v":0},null,null,null,"118  "]
[{"$f":"COUNTIF(السجل_العام_للمستفيدين!B:B,'سجل انتظار'!B241)","v":0},null,null,null,"118  "]
[{"$f":"COUNTIF(السجل_العام_للمستفيدين!B:B,'سجل انتظار'!B242)","v":0},null,null,null,"118  "]
[{"$f":"COUNTIF(السجل_العام_للمستفيدين!B:B,'سجل انتظار'!B243)","v":0},null,null,null,"118  "]
[{"$f":"COUNTIF(السجل_العام_للمستفيدين!B:B,'سجل انتظار'!B244)","v":0},null,null,null,"118  "]
[{"$f":"COUNTIF(السجل_العام_للمستفيدين!B:B,'سجل انتظار'!B245)","v":0},null,null,null,"118  "]
[{"$f":"COUNTIF(السجل_العام_للمستفيدين!B:B,'سجل انتظار'!B246)","v":0},null,null,null,"118  "]
[{"$f":"COUNTIF(السجل_العام_للمستفيدين!B:B,'سجل انتظار'!B247)","v":0},null,null,null,"118  "]
[{"$f":"COUNTIF(السجل_العام_للمستفيدين!B:B,'سجل انتظار'!B248)","v":0},null,null,null,"118  "]
[{"$f":"COUNTIF(السجل_العام_للمستفيدين!B:B,'سجل انتظار'!B249)","v":0},null,null,null,"118  "]
[{"$f":"COUNTIF(السجل_العام_للمستفيدين!B:B,'سجل انتظار'!B250)","v":0},null,null,null,"118  "]
[{"$f":"COUNTIF(السجل_العام_للمستفيدين!B:B,'سجل انتظار'!B251)","v":0},null,null,null,"118  "]
[{"$f":"COUNTIF(السجل_العام_للمستفيدين!B:B,'سجل انتظار'!B252)","v":0},null,null,null,"118  "]
[{"$f":"COUNTIF(السجل_العام_للمستفيدين!B:B,'سجل انتظار'!B253)","v":0},null,null,null,"118  "]
[{"$f":"COUNTIF(السجل_العام_للمستفيدين!B:B,'سجل انتظار'!B254)","v":0},null,null,null,"118  "]
[{"$f":"COUNTIF(السجل_العام_للمستفيدين!B:B,'سجل انتظار'!B255)","v":0},null,null,null,"118  "]
[{"$f":"COUNTIF(السجل_العام_للمستفيدين!B:B,'سجل انتظار'!B256)","v":0},null,null,null,"118  "]
[{"$f":"COUNTIF(السجل_العام_للمستفيدين!B:B,'سجل انتظار'!B257)","v":0},null,null,null,"118  "]
[{"$f":"COUNTIF(السجل_العام_للمستفيدين!B:B,'سجل انتظار'!B258)","v":0},null,null,null,"118  "]
[{"$f":"COUNTIF(السجل_العام_للمستفيدين!B:B,'سجل انتظار'!B259)","v":0},null,null,null,"118  "]
[{"$f":"COUNTIF(السجل_العام_للمستفيدين!B:B,'سجل انتظار'!B260)","v":0},null,null,null,{"$f":"DATEDIF(D260,TODAY(),\"y\")&\"  \"","v":"118  "}]
[{"$f":"COUNTIF(السجل_العام_للمستفيدين!B:B,'سجل انتظار'!B261)","v":0},null,null,null,"118  "]
[{"$f":"COUNTIF(السجل_العام_للمستفيدين!B:B,'سجل انتظار'!B262)","v":0},null,null,null,"118  "]
[{"$f":"COUNTIF(السجل_العام_للمستفيدين!B:B,'سجل انتظار'!B263)","v":0},null,null,null,"118  "]
[{"$f":"COUNTIF(السجل_العام_للمستفيدين!B:B,'سجل انتظار'!B264)","v":0},null,null,null,"118  "]
[{"$f":"COUNTIF(السجل_العام_للمستفيدين!B:B,'سجل انتظار'!B265)","v":0},null,null,null,"118  "]
[{"$f":"COUNTIF(السجل_العام_للمستفيدين!B:B,'سجل انتظار'!B266)","v":0},null,null,null,"118  "]
[{"$f":"COUNTIF(السجل_العام_للمستفيدين!B:B,'سجل انتظار'!B267)","v":0},null,null,null,"118  "]
[{"$f":"COUNTIF(السجل_العام_للمستفيدين!B:B,'سجل انتظار'!B268)","v":0},null,null,null,"118  "]
[{"$f":"COUNTIF(السجل_العام_للمستفيدين!B:B,'سجل انتظار'!B269)","v":0},null,null,null,"118  "]
[{"$f":"COUNTIF(السجل_العام_للمستفيدين!B:B,'سجل انتظار'!B270)","v":0},null,null,null,"118  "]
[{"$f":"COUNTIF(السجل_العام_للمستفيدين!B:B,'سجل انتظار'!B271)","v":0},null,null,null,"118  "]
[{"$f":"COUNTIF(السجل_العام_للمستفيدين!B:B,'سجل انتظار'!B272)","v":0},null,null,null,"118  "]
[{"$f":"COUNTIF(السجل_العام_للمستفيدين!B:B,'سجل انتظار'!B273)","v":0},null,null,null,"118  "]
[{"$f":"COUNTIF(السجل_العام_للمستفيدين!B:B,'سجل انتظار'!B274)","v":0},null,null,null,"118  "]
[{"$f":"COUNTIF(السجل_العام_للمستفيدين!B:B,'سجل انتظار'!B275)","v":0},null,null,null,"118  "]
[{"$f":"COUNTIF(السجل_العام_للمستفيدين!B:B,'سجل انتظار'!B276)","v":0},null,null,null,"118  "]
[{"$f":"COUNTIF(السجل_العام_للمستفيدين!B:B,'سجل انتظار'!B277)","v":0},null,null,null,"118  "]
[{"$f":"COUNTIF(السجل_العام_للمستفيدين!B:B,'سجل انتظار'!B278)","v":0},null,null,null,"118  "]
[{"$f":"COUNTIF(السجل_العام_للمستفيدين!B:B,'سجل انتظار'!B279)","v":0},null,null,null,"118  "]
[{"$f":"COUNTIF(السجل_العام_للمستفيدين!B:B,'سجل انتظار'!B280)","v":0},null,null,null,"118  "]
[{"$f":"COUNTIF(السجل_العام_للمستفيدين!B:B,'سجل انتظار'!B281)","v":0},null,null,null,"118  "]
[{"$f":"COUNTIF(السجل_العام_للمستفيدين!B:B,'سجل انتظار'!B282)","v":0},null,null,null,"118  "]
[{"$f":"COUNTIF(السجل_العام_للمستفيدين!B:B,'سجل انتظار'!B283)","v":0},null,null,null,"118  "]
[{"$f":"COUNTIF(السجل_العام_للمستفيدين!B:B,'سجل انتظار'!B284)","v":0},null,null,null,"118  "]
[{"$f":"COUNTIF(السجل_العام_للمستفيدين!B:B,'سجل انتظار'!B285)","v":0},null,null,null,"118  "]
[{"$f":"COUNTIF(السجل_العام_للمستفيدين!B:B,'سجل انتظار'!B286)","v":0},null,null,null,"118  "]
[{"$f":"COUNTIF(السجل_العام_للمستفيدين!B:B,'سجل انتظار'!B287)","v":0},null,null,null,"118  "]
[{"$f":"COUNTIF(السجل_العام_للمستفيدين!B:B,'سجل انتظار'!B288)","v":0},null,null,null,"118  "]
[{"$f":"COUNTIF(السجل_العام_للمستفيدين!B:B,'سجل انتظار'!B289)","v":0},null,null,null,"118  "]
[{"$f":"COUNTIF(السجل_العام_للمستفيدين!B:B,'سجل انتظار'!B290)","v":0},null,null,null,"118  "]
[{"$f":"COUNTIF(السجل_العام_للمستفيدين!B:B,'سجل انتظار'!B291)","v":0},null,null,null,"118  "]
[{"$f":"COUNTIF(السجل_العام_للمستفيدين!B:B,'سجل انتظار'!B292)","v":0},null,null,null,"118  "]
[{"$f":"COUNTIF(السجل_العام_للمستفيدين!B:B,'سجل انتظار'!B293)","v":0},null,null,null,"118  "]
[{"$f":"COUNTIF(السجل_العام_للمستفيدين!B:B,'سجل انتظار'!B294)","v":0},null,null,null,"118  "]
[{"$f":"COUNTIF(السجل_العام_للمستفيدين!B:B,'سجل انتظار'!B295)","v":0},null,null,null,"118  "]
[{"$f":"COUNTIF(السجل_العام_للمستفيدين!B:B,'سجل انتظار'!B296)","v":0},null,null,null,"118  "]
[{"$f":"COUNTIF(السجل_العام_للمستفيدين!B:B,'سجل انتظار'!B297)","v":0},null,null,null,"118  "]
[{"$f":"COUNTIF(السجل_العام_للمستفيدين!B:B,'سجل انتظار'!B298)","v":0},null,null,null,"118  "]
[{"$f":"COUNTIF(السجل_العام_للمستفيدين!B:B,'سجل انتظار'!B299)","v":0},null,null,null,"118  "]
[{"$f":"COUNTIF(السجل_العام_للمستفيدين!B:B,'سجل انتظار'!B300)","v":0},null,null,null,"118  "]
[{"$f":"COUNTIF(السجل_العام_للمستفيدين!B:B,'سجل انتظار'!B301)","v":0},null,null,null,"118  "]
[{"$f":"COUNTIF(السجل_العام_للمستفيدين!B:B,'سجل انتظار'!B302)","v":0},null,null,null,"118  "]
[{"$f":"COUNTIF(السجل_العام_للمستفيدين!B:B,'سجل انتظار'!B303)","v":0},null,null,null,"118  "]
[{"$f":"COUNTIF(السجل_العام_للمستفيدين!B:B,'سجل انتظار'!B304)","v":0},null,null,null,"118  "]
[{"$f":"COUNTIF(السجل_العام_للمستفيدين!B:B,'سجل انتظار'!B305)","v":0},null,null,null,"118  "]
[{"$f":"COUNTIF(السجل_العام_للمستفيدين!B:B,'سجل انتظار'!B306)","v":0},null,null,null,"118  "]
[{"$f":"COUNTIF(السجل_العام_للمستفيدين!B:B,'سجل انتظار'!B307)","v":0},null,null,null,"118  "]
[{"$f":"COUNTIF(السجل_العام_للمستفيدين!B:B,'سجل انتظار'!B308)","v":0},null,null,null,"118  "]
[{"$f":"COUNTIF(السجل_العام_للمستفيدين!B:B,'سجل انتظار'!B309)","v":0},null,null,null,"118  "]
[{"$f":"COUNTIF(السجل_العام_للمستفيدين!B:B,'سجل انتظار'!B310)","v":0},null,null,null,"118  "]
[{"$f":"COUNTIF(السجل_العام_للمستفيدين!B:B,'سجل انتظار'!B311)","v":0},null,null,null,"118  "]
[{"$f":"COUNTIF(السجل_العام_للمستفيدين!B:B,'سجل انتظار'!B312)","v":0},null,null,null,"118  "]
[{"$f":"COUNTIF(السجل_العام_للمستفيدين!B:B,'سجل انتظار'!B313)","v":0},null,null,null,"118  "]
[{"$f":"COUNTIF(السجل_العام_للمستفيدين!B:B,'سجل انتظار'!B314)","v":0},null,null,null,"118  "]
[{"$f":"COUNTIF(السجل_العام_للمستفيدين!B:B,'سجل انتظار'!B315)","v":0},null,null,null,"118  "]
[{"$f":"COUNTIF(السجل_العام_للمستفيدين!B:B,'سجل انتظار'!B316)","v":0},null,null,null,"118  "]
[{"$f":"COUNTIF(السجل_العام_للمستفيدين!B:B,'سجل انتظار'!B317)","v":0},null,null,null,"118  "]

{"sheet":"info","index":4,"n_rows":22,"n_cols":7,"rows_kept":22,"cut":false,"hidden":false,"merged":[]}
["الجنس","الدراسة","الرغبات","جلسات مهارات الحياة","اختيار",null,"تقييم المهارات"]
["ذكر","اول","قدم",1,"نعم","ذهنية","A"]
["انثى","ثاني","سلة",2,"لا","حركية","B"]
[null,"ثالث","فنون قتالية",3,null,null,"C"]
[null,"رابع","شطرنج",4]
[null,"خامس","ايروبيك",5]
[null,"سادس","بين بون",6]
[null,"سابع","كهرباء منزلية",7]
[null,"ثامن","كوافير",8]
[null,"تاسع","اعادة تدوير"]
[null,"عاشر","اشغال يدوية"]
[null,"حادي عشر","خط عربي و اعلان"]
[null,"بكالوريا","خياطة"]
[null,"جامعة","صيانة موبايل"]
[null,"متسرب","صيانة مولدات"]
[null,null,"انكليزي"]
[null,null,"فرنسي"]
[null,null,"محو امية"]
[null,null,"منظفات"]
[null,null,"حلاقة رجالية"]
[null,null,"ICDL"]
[null,null,"قراءة و خط"]